Workbook

Sheet Vista Principal
B2: Simulador Préstamo Personal Libre Disponibilidad
B7: 1) Establecer los datos del préstamos
B9: Producto | E9: Préstamos Personales (LD )
B10: Tipo de Seguro | E10: Seguro de Desgravamen
B11: Tarifa | E11: TARIFA TITULAR
B12: MAF Inicial | E12: 16000
B13: Seguro Desempleo | E13: 0
B14: Monto adicional desempleo | E14: =E13*E12 -> 0
B15: Prima de Seguro de Desgravamen/Vida | E15: =IF(E10="Seguro de vida",'Proceso Prima de Seguro'!C13,'Proceso Prima de Seguro'!G16) -> 0.1275133779
B16: Monto del Seguro (Prima única S/) | E16: =+E15*E12 -> 2040.214047
B17: MAF Final | E17: =E12+E14+E16 -> 18040.21405
B18: Empleado | E18: =IF(OR(E9="Préstamos Personales (LD Y PA) (Empleados)",E9 = "Préstamos Vehiculares (Empleados)"),"SI","NO") -> NO
B19: Moneda | E19: Soles
B20: Plazo | E20: 24
B21: Fecha de Desembolso | E21: =TODAY()+2 -> 2022-08-20 | H21: =E22-E21 -> 57 | I21: Días de Periodo de Gracia
B22: Fecha de 1er Pago | E22: 2022-10-16 | I22: =IF((DAY(E36)=29)*1+(DAY(E36)=30)*1+(DAY(E36)=31)*1," ALERTA: Primera fecha de vencimiento no puede ser 29, 30 o 31, elegir otro periodo de gracia",IF(H21<40," ALERTA: Fecha de 1er Pago de cuota debe ser entre 40 y 60 días.",IF(H21>60," ALERTA: Fecha de 1er Pago de cuota debe ser entre 40 y 60 días.",""))) -> 
B23: Cuota Julio | E23: 1
B24: Cuota Diciembre | E24: 1
B25: TEA | E25: 0.39 | H25: =SUM(J36:J395) -> 7662.235538 | I25: Total Intereses
B26: TEA TOTAL | E26: =+E25 -> 0.39
B27: Monto del Bien | E27: 0
B28: Seguro del Bien | E28: 0
B29: Portes | E29: 0
B30: Cuota | E30: =(E17+(E28*E27+E29)*P34)/O34 -> 1070.935399
B31: 2) Calcular TCEA presionando el botón
B32: TCEA | C32: 0.5673979138 | E32: =C32 -> 0.5673979138
U33: =E17-U34-E14-E16 -> 0
O34: =SUM(O36:O395) -> 16.84528689 | P34: =SUM(P36:P395) -> 16.84528689 | U34: =SUM(U36:U395) -> 16000
B35: N° Cuota | C35: Fecha de pago | D35: Día | E35: Fecha de pago | F35: Días | G35: Dias Acumulados | H35: Saldo Inicial | I35: Amortización | J35: Interés | K35: Seguro del Bien | L35: Portes | M35: Cuota Constante | N35: Saldo Final | O35: Factor Cronograma | P35: Factor Cronograma 2 | R35: Vector i,1 Cuota | S35: Vector i,2 Días Acum | T35: Vector i,3 Factor | U35: Vector i,4 Calculo VA
B36: 1 | C36: =E22 -> 2022-10-16 | D36: =IF(B36<=$E$20,WEEKDAY(C36,2),"") -> 7 | E36: =IF(D36=7,C36+1,C36) -> 2022-10-17 | F36: =E36-E21 -> 58 | G36: =F36 -> 58 | H36: =E17 -> 18040.21405 | I36: =IF(B36>E$20,"",M36-L36-K36-J36) -> 87.97635709 | J36: =IF(B36>E$20,"",((1+E$25)^(F36/360)-1)*H36) -> 982.9590423 | K36: =IF(B36>E$20,"",E$27*E$28) -> 0 | L36: =IF(B36>E$20,"",E$29) -> 0 | M36: =IF(B36>E$20,"",IF(B36=E$20,H36+J36+K36+L36,IF(AND(E$23=2,MONTH(E36)=7),2*E$30,IF(AND(E$24=2,MONTH(E36)=12),2*E$30,E$30)))) -> 1070.935399 | N36: =IF(B36>E$20,"",H36-I36) -> 17952.23769 | O36: =IFERROR(IF(AND(MONTH(E36)=7,E$23=2),2/(1+E$26)^(G36/360),IF(AND(MONTH(E36)=12,E$24=2),2/(1+E$26)^(G36/360),1/(1+E$26)^(G36/360))),"") -> 0.9483283342 | P36: =IFERROR(1/(1+E$26)^(G36/360),"") -> 0.9483283342 | R36: =IFERROR(I36+J36+K36+L36,"") -> 1070.935399 | S36: =G36 -> 58 | T36: =IFERROR((1+C$32)^(S36/360),"") -> 1.075091797 | U36: =IFERROR(ROUND(R36/T36,2),"") -> 996.13
B37: 2 | C37: =IF(B37>$E$20,"",EDATE(C36,1)) -> 2022-11-16 | D37: 3 | E37: =IF(D37=7,C37+1,C37) -> 2022-11-16 | F37: =IF(B37>E$20,"",E37-E36) -> 30 | G37: =IFERROR(F37+G36,"") -> 88 | H37: =IF(B37>E$20,"",N36) -> 17952.23769 | I37: 571.4686365 | J37: 499.4667629 | K37: 0 | L37: 0 | M37: 1070.935399 | N37: 17380.76905 | O37: 0.9226581592 | P37: 0.9226581592 | R37: =IFERROR(I37+J37+K37+L37,"") -> 1070.935399 | S37: 88 | T37: 1.116118963 | U37: 959.52
B38: 3 | C38: 2022-12-16 | D38: 5 | E38: 2022-12-16 | F38: 30 | G38: 118 | H38: 17380.76905 | I38: 587.3680244 | J38: 483.567375 | K38: 0 | L38: 0 | M38: 1070.935399 | N38: 16793.40103 | O38: 0.8976828467 | P38: 0.8976828467 | R38: 1070.935399 | S38: 118 | T38: 1.158711789 | U38: 924.25
B39: 4 | C39: 2023-01-16 | D39: 1 | E39: 2023-01-16 | F39: 31 | G39: 149 | H39: 16793.40103 | I39: 587.9136827 | J39: 483.0217167 | K39: 0 | L39: 0 | M39: 1070.935399 | N39: 16205.48735 | O39: 0.8725850405 | P39: 0.8725850405 | R39: 1070.935399 | S39: 149 | T39: 1.204432675 | U39: 889.16
B40: 5 | C40: 2023-02-16 | D40: 4 | E40: 2023-02-16 | F40: 31 | G40: 180 | H40: 16205.48735 | I40: 604.8236032 | J40: 466.1117962 | K40: 0 | L40: 0 | M40: 1070.935399 | N40: 15600.66374 | O40: 0.8481889297 | P40: 0.8481889297 | R40: 1070.935399 | S40: 180 | T40: 1.251957633 | U40: 855.41
B41: 6 | C41: 2023-03-16 | D41: 4 | E41: 2023-03-16 | F41: 28 | G41: 208 | H41: 15600.66374 | I41: 666.2021939 | J41: 404.7332055 | K41: 0 | L41: 0 | M41: 1070.935399 | N41: 14934.46155 | O41: 0.8267405254 | P41: 0.8267405254 | R41: 1070.935399 | S41: 208 | T41: 1.296493195 | U41: 826.02
B42: 7 | C42: 2023-04-16 | D42: 7 | E42: 2023-04-17 | F42: 32 | G42: 240 | H42: 14934.46155 | I42: 627.3212017 | J42: 443.6141976 | K42: 0 | L42: 0 | M42: 1070.935399 | N42: 14307.14035 | O42: 0.8028913884 | P42: 0.8028913884 | R42: 1070.935399 | S42: 240 | T42: 1.349334143 | U42: 793.68
B43: 8 | C43: 2023-05-16 | D43: 2 | E43: 2023-05-16 | F43: 29 | G43: 269 | H43: 14307.14035 | I43: 686.3276246 | J43: 384.6077748 | K43: 0 | L43: 0 | M43: 1070.935399 | N43: 13620.81272 | O43: 0.7818729046 | P43: 0.7818729046 | R43: 1070.935399 | S43: 269 | T43: 1.399079147 | U43: 765.46
B44: 9 | C44: 2023-06-16 | D44: 5 | E44: 2023-06-16 | F44: 31 | G44: 300 | H44: 13620.81272 | I44: 679.1655409 | J44: 391.7698584 | K44: 0 | L44: 0 | M44: 1070.935399 | N44: 12941.64718 | O44: 0.760012963 | P44: 0.760012963 | R44: 1070.935399 | S44: 300 | T44: 1.454284539 | U44: 736.4
B45: 10 | C45: 2023-07-16 | D45: 7 | E45: 2023-07-17 | F45: 31 | G45: 331 | H45: 12941.64718 | I45: 698.7001013 | J45: 372.2352981 | K45: 0 | L45: 0 | M45: 1070.935399 | N45: 12242.94708 | O45: 0.7387641911 | P45: 0.7387641911 | R45: 1070.935399 | S45: 331 | T45: 1.511668246 | U45: 708.45
B46: 11 | C46: 2023-08-16 | D46: 3 | E46: 2023-08-16 | F46: 30 | G46: 361 | H46: 12242.94708 | I46: 730.3123945 | J46: 340.6230049 | K46: 0 | L46: 0 | M46: 1070.935399 | N46: 11512.63469 | O46: 0.7187666803 | P46: 0.7187666803 | R46: 1070.935399 | S46: 361 | T46: 1.569355844 | U46: 682.4
B47: 12 | C47: 2023-09-16 | D47: 6 | E47: 2023-09-16 | F47: 31 | G47: 392 | H47: 11512.63469 | I47: 739.8022025 | J47: 331.1331969 | K47: 0 | L47: 0 | M47: 1070.935399 | N47: 10772.83248 | O47: 0.6986710899 | P47: 0.6986710899 | R47: 1070.935399 | S47: 392 | T47: 1.631280078 | U47: 656.5
B48: 13 | C48: 2023-10-16 | D48: 1 | E48: 2023-10-16 | F48: 30 | G48: 422 | H48: 10772.83248 | I48: 771.2138905 | J48: 299.7215088 | K48: 0 | L48: 0 | M48: 1070.935399 | N48: 10001.61859 | O48: 0.6797588539 | P48: 0.6797588539 | R48: 1070.935399 | S48: 422 | T48: 1.693532249 | U48: 632.37
B49: 14 | C49: 2023-11-16 | D49: 4 | E49: 2023-11-16 | F49: 31 | G49: 453 | H49: 10001.61859 | I49: 783.2629396 | J49: 287.6724598 | K49: 0 | L49: 0 | M49: 1070.935399 | N49: 9218.355654 | O49: 0.6607538612 | P49: 0.6607538612 | R49: 1070.935399 | S49: 453 | T49: 1.760356282 | U49: 608.36
B50: 15 | C50: 2023-12-16 | D50: 6 | E50: 2023-12-16 | F50: 30 | G50: 483 | H50: 9218.355654 | I50: 814.4625108 | J50: 256.4728886 | K50: 0 | L50: 0 | M50: 1070.935399 | N50: 8403.893143 | O50: 0.6428680018 | P50: 0.6428680018 | R50: 1070.935399 | S50: 483 | T50: 1.8275342 | U50: 586
B51: 16 | C51: 2024-01-16 | D51: 2 | E51: 2024-01-16 | F51: 31 | G51: 514 | H51: 8403.893143 | I51: 829.2176624 | J51: 241.717737 | K51: 0 | L51: 0 | M51: 1070.935399 | N51: 7574.67548 | O51: 0.6248944195 | P51: 0.6248944195 | R51: 1070.935399 | S51: 514 | T51: 1.899645733 | U51: 563.76
B52: 17 | C52: 2024-02-16 | D52: 5 | E52: 2024-02-16 | F52: 31 | G52: 545 | H52: 7574.67548 | I52: 853.0681105 | J52: 217.8672889 | K52: 0 | L52: 0 | M52: 1070.935399 | N52: 6721.60737 | O52: 0.6074233504 | P52: 0.6074233504 | R52: 1070.935399 | S52: 545 | T52: 1.974602669 | U52: 542.35
B53: 18 | C53: 2024-03-16 | D53: 6 | E53: 2024-03-16 | F53: 29 | G53: 574 | H53: 6721.60737 | I53: 890.2436335 | J53: 180.6917658 | K53: 0 | L53: 0 | M53: 1070.935399 | N53: 5831.363736 | O53: 0.5915219246 | P53: 0.5915219246 | R53: 1070.935399 | S53: 574 | T53: 2.047399033 | U53: 523.07
B54: 19 | C54: 2024-04-16 | D54: 2 | E54: 2024-04-16 | F54: 31 | G54: 605 | H54: 5831.363736 | I54: 903.2102722 | J54: 167.7251271 | K54: 0 | L54: 0 | M54: 1070.935399 | N54: 4928.153464 | O54: 0.5749838982 | P54: 0.5749838982 | R54: 1070.935399 | S54: 605 | T54: 2.128186074 | U54: 503.22
B55: 20 | C55: 2024-05-16 | D55: 4 | E55: 2024-05-16 | F55: 30 | G55: 635 | H55: 4928.153464 | I55: 933.8244219 | J55: 137.1109775 | K55: 0 | L55: 0 | M55: 1070.935399 | N55: 3994.329042 | O55: 0.5594197346 | P55: 0.5594197346 | R55: 1070.935399 | S55: 635 | T55: 2.209400947 | U55: 484.72
B56: 21 | C56: 2024-06-16 | D56: 7 | E56: 2024-06-17 | F56: 32 | G56: 667 | H56: 3994.329042 | I56: 952.2875949 | J56: 118.6478044 | K56: 0 | L56: 0 | M56: 1070.935399 | N56: 3042.041447 | O56: 0.54328205 | P56: 0.54328205 | R56: 1070.935399 | S56: 667 | T56: 2.299449117 | U56: 465.74
B57: 22 | C57: 2024-07-16 | D57: 2 | E57: 2024-07-16 | F57: 29 | G57: 696 | H57: 3042.041447 | I57: 989.1585548 | J57: 81.77684453 | K57: 0 | L57: 0 | M57: 1070.935399 | N57: 2052.882893 | O57: 0.5290597465 | P57: 0.5290597465 | R57: 1070.935399 | S57: 696 | T57: 2.384221378 | U57: 449.18
B58: 23 | C58: 2024-08-16 | D58: 5 | E58: 2024-08-16 | F58: 31 | G58: 727 | H58: 2052.882893 | I58: 1011.889169 | J58: 59.04622996 | K58: 0 | L58: 0 | M58: 1070.935399 | N58: 1040.993723 | O58: 0.5142680648 | P58: 0.5142680648 | R58: 1070.935399 | S58: 727 | T58: 2.478298883 | U58: 432.13
B59: 24 | C59: 2024-09-16 | D59: 1 | E59: 2024-09-16 | F59: 31 | G59: 758 | H59: 1040.993723 | I59: 1040.993723 | J59: 29.94167616 | K59: 0 | L59: 0 | M59: 1070.935399 | N59: 0 | O59: 0.4998899353 | P59: 0.4998899353 | R59: 1070.935399 | S59: 758 | T59: 2.576088533 | U59: 415.72
B60: 25
B61: 26
B62: 27
B63: 28
B64: 29
B65: 30
B66: 31
B67: 32
B68: 33
B69: 34
B70: 35
B71: 36
B72: 37
B73: 38
B74: 39
B75: 40
B76: 41
B77: 42
B78: 43
B79: 44
B80: 45
B81: 46
B82: 47
B83: 48
B84: 49
B85: 50
B86: 51
B87: 52
B88: 53
B89: 54
B90: 55
B91: 56
B92: 57
B93: 58
B94: 59
B95: 60
B96: 61
B97: 62
B98: 63
B99: 64
B100: 65 | D100: =IF(B100<=$E$20,WEEKDAY(C100,2),"") ->  | I100: =IF(B100>E$20,"",M100-L100-K100-J100) ->  | J100: =IF(B100>E$20,"",((1+E$25)^(F100/360)-1)*H100) ->  | K100: =IF(B100>E$20,"",E$27*E$28) ->  | L100: =IF(B100>E$20,"",E$29) ->  | M100: =IF(B100>E$20,"",IF(B100=E$20,H100+J100+K100+L100,IF(AND(E$23=2,MONTH(E100)=7),2*E$30,IF(AND(E$24=2,MONTH(E100)=12),2*E$30,E$30)))) ->  | N100: =IF(B100>E$20,"",H100-I100) ->  | O100: =IFERROR(IF(AND(MONTH(E100)=7,E$23=2),2/(1+E$26)^(G100/360),IF(AND(MONTH(E100)=12,E$24=2),2/(1+E$26)^(G100/360),1/(1+E$26)^(G100/360))),"") ->  | P100: =IFERROR(1/(1+E$26)^(G100/360),"") ->  | S100: =G100 ->  | T100: =IFERROR((1+C$32)^(S100/360),"") ->  | U100: =IFERROR(ROUND(R100/T100,2),"") -> 
B101: 66 | C101: =IF(B101>$E$20,"",EDATE(C100,1)) ->  | E101: =IF(D101=7,C101+1,C101) ->  | F101: =IF(B101>E$20,"",E101-E100) ->  | G101: =IFERROR(F101+G100,"") ->  | H101: =IF(B101>E$20,"",N100) ->  | R101: =IFERROR(I101+J101+K101+L101,"") -> 
B102: 67
B103: 68
B104: 69
B105: 70
B106: 71
B107: 72
B108: 73
B109: 74
B110: 75
B111: 76
B112: 77
B113: 78
B114: 79
B115: 80
B116: 81
B117: 82
B118: 83
B119: 84
B120: 85
B121: 86
B122: 87
B123: 88
B124: 89
B125: 90
B126: 91
B127: 92
B128: 93
B129: 94
B130: 95
B131: 96
B132: 97
B133: 98
B134: 99
B135: 100
B136: 101
B137: 102
B138: 103
B139: 104
B140: 105
B141: 106
B142: 107
B143: 108
B144: 109
B145: 110
B146: 111
B147: 112
B148: 113
B149: 114
B150: 115
B151: 116
B152: 117
B153: 118
B154: 119
B155: 120
B156: 121
B157: 122
B158: 123
B159: 124
B160: 125
B161: 126
B162: 127
B163: 128
B164: 129 | D164: =IF(B164<=$E$20,WEEKDAY(C164,2),"") ->  | I164: =IF(B164>E$20,"",M164-L164-K164-J164) ->  | J164: =IF(B164>E$20,"",((1+E$25)^(F164/360)-1)*H164) ->  | K164: =IF(B164>E$20,"",E$27*E$28) ->  | L164: =IF(B164>E$20,"",E$29) ->  | M164: =IF(B164>E$20,"",IF(B164=E$20,H164+J164+K164+L164,IF(AND(E$23=2,MONTH(E164)=7),2*E$30,IF(AND(E$24=2,MONTH(E164)=12),2*E$30,E$30)))) ->  | N164: =IF(B164>E$20,"",H164-I164) ->  | O164: =IFERROR(IF(AND(MONTH(E164)=7,E$23=2),2/(1+E$26)^(G164/360),IF(AND(MONTH(E164)=12,E$24=2),2/(1+E$26)^(G164/360),1/(1+E$26)^(G164/360))),"") ->  | P164: =IFERROR(1/(1+E$26)^(G164/360),"") ->  | S164: =G164 ->  | T164: =IFERROR((1+C$32)^(S164/360),"") ->  | U164: =IFERROR(ROUND(R164/T164,2),"") -> 
B165: 130 | C165: =IF(B165>$E$20,"",EDATE(C164,1)) ->  | E165: =IF(D165=7,C165+1,C165) ->  | F165: =IF(B165>E$20,"",E165-E164) ->  | G165: =IFERROR(F165+G164,"") ->  | H165: =IF(B165>E$20,"",N164) ->  | R165: =IFERROR(I165+J165+K165+L165,"") -> 
B166: 131
B167: 132
B168: 133
B169: 134
B170: 135
B171: 136
B172: 137
B173: 138
B174: 139
B175: 140
B176: 141
B177: 142
B178: 143
B179: 144
B180: 145
B181: 146
B182: 147
B183: 148
B184: 149
B185: 150
B186: 151
B187: 152
B188: 153
B189: 154
B190: 155
B191: 156
B192: 157
B193: 158
B194: 159
B195: 160
B196: 161
B197: 162
B198: 163
B199: 164
B200: 165
B201: 166
B202: 167
B203: 168
B204: 169
B205: 170
B206: 171
... 190 more rows

Sheet Proceso Prima de Seguro (hidden)
C2: Proceso de Cálculo de la Prima de Seguros
B7: 1) Datos esenciales del préstamo | F7: 3) Calculo del valor presente del Seguro
B9: Producto | C9: ='Vista Principal'!E9 -> Préstamos Personales (LD ) | F9: Suma de Prima Mensual | G9: =SUM(K37:K396) -> 2091.848329
B10: Tipo de Seguro | C10: ='Vista Principal'!E10 -> Seguro de Desgravamen | F10: VPN - Valor Presente | G10: =NPV(C16,K37:K396) -> 2040.214047
B11: Tarifa | C11: ='Vista Principal'!E11 -> TARIFA TITULAR
B12: Monto inicial | C12: ='Vista Principal'!E12 -> 16000 | F12: 4) Calculo del Monto Adicional del Seguro y MAF
B13: =C10 -> Seguro de Desgravamen | C13: =INDEX(_xlfn._xlws.FILTER(TarifarioPrincipal[],(TarifarioPrincipal[TARIFA]='Proceso Prima de Seguro'!C11)*(TarifarioPrincipal[PRODUCTO]='Proceso Prima de Seguro'!C9)*(TarifarioPrincipal[TIPO_SEGURO]='Proceso Prima de Seguro'!C10)*(TarifarioPrincipal[Plazo]='Proceso Prima de Seguro'!C19)),0,5) -> 0.008314
B14: Monto adicional Seguro de Desgravamen/ Vida | F14: Monto inicial | G14: =C12 -> 16000
B15: MAF Inicial | C15: =C12+C14 -> 16000 | F15: Monto adicional de Desgravamen / Vida | G15: =G10 -> 2040.214047
B16: Costo Capital | C16: =INDEX(_xlfn._xlws.FILTER(Tabla2[],Tabla2[TARIFA]=C11),0,2) -> 0.002871 | F16: Prima de Seguro de Desgravamen / Vida | G16: =G15/G14 -> 0.1275133779
B17: Moneda | C17: ='Vista Principal'!E19 -> Soles | F17: MAF Inicial | G17: =G14+G15 -> 18040.21405
B18: Plazo Remanente Meses | C18: ='Vista Principal'!E20 -> 24
B19: Plazo Rango | C19: =IF(C18<=12,"0-12",IF(AND(C18>12,C18<=18),"13-18",IF(AND(C18>18,C18<=24),"19-24",IF(AND(C18>24,C18<=36),"25-36",IF(AND(C18>36,C18<=48),"37-48","49-84"))))) -> 19-24
B20: Fecha de Desembolso | C20: ='Vista Principal'!E21 -> 2022-08-20
B21: Fecha de 1er Pago | C21: ='Vista Principal'!E22 -> 2022-10-16
B22: Cuota Julio | C22: ='Vista Principal'!E23 -> 1
B23: Cuota Diciembre | C23: ='Vista Principal'!E24 -> 1
B24: TEA | C24: ='Vista Principal'!E25 -> 0.39
B25: TEA TOTAL | C25: =(1+(((1+C24)^(30/360)-1)+C13))^12-1 -> 0.5310911604
B26: Monto del Bien | C26: 0
B27: Seguro del Bien | C27: 0
B28: Portes | C28: 0
B29: Cuota | C29: =(C15+(C27*C26+C28)*Q35)/P35 -> 1046.542217
B31: TCEA | C31: 0.9236764758
V32: =C15-V35-C14 -> 3123.12
B34: 2) Creación de Cronograma de prima mensual
P35: =SUM(P37:P396) -> 15.28844201 | Q35: =SUM(Q37:Q396) -> 15.28844201 | V35: =SUM(V37:V396) -> 12876.88
B36: N° Cuota | C36: Fecha de pago | D36: Día | E36: Fecha de pago | F36: Días | G36: Dias Acumulados | H36: Saldo Inicial | I36: Amortización | J36: Interés | K36: Seguro Desgravamen | L36: Seguro del Bien | M36: Portes | N36: Cuota Constante | O36: Saldo Final | P36: Factor Cronograma | Q36: Factor Cronograma 2 | S36: Vector i,1 Cuota | T36: Vector i,2 Días Acum | U36: Vector i,3 Factor | V36: Vector i,4 Calculo VA | W36: VPN - Valor Presente | X36: VPN - Valor Presente
B37: 1 | C37: =C21 -> 2022-10-16 | D37: =IF(B37<=$C$18,WEEKDAY(C37,2),"") -> 7 | E37: =IF(D37=7,C37+1,C37) -> 2022-10-17 | F37: =E37-C20 -> 58 | G37: =F37 -> 58 | H37: =C15 -> 16000 | I37: =IF(B37>C$18,"",N37-M37-L37-K37-J37) -> -83.4288397 | J37: =IF(B37>C$18,"",((1+C$24)^(F37/360)-1)*H37) -> 871.7936847 | K37: =IF(B37>C$18,"",((1+C$13)^(F37/30)-1)*H37) -> 258.1773725 | L37: =IF(B37>C$18,"",C$26*C$27) -> 0 | M37: =IF(B37>C$18,"",C$28) -> 0 | N37: =IF(B37>C$18,"",IF(B37=C$18,H37+J37+K37+L37+M37,IF(AND(C$22=2,MONTH(E37)=7),2*C$29,IF(AND(C$23=2,MONTH(E37)=12),2*C$29,C$29)))) -> 1046.542217 | O37: =IF(B37>C$18,"",H37-I37) -> 16083.42884 | P37: =IFERROR(IF(AND(MONTH(E37)=7,C$22=2),2/(1+C$25)^(G37/360),IF(AND(MONTH(E37)=12,C$23=2),2/(1+C$25)^(G37/360),1/(1+C$25)^(G37/360))),"") -> 0.9336718721 | Q37: =IFERROR(1/(1+C$25)^(G37/360),"") -> 0.9336718721 | S37: =IFERROR(I37+J37+K37+L37+M37,"") -> 1046.542217 | T37: =G37 -> 58 | U37: =IFERROR((1+C$31)^(T37/360),"") -> 1.111160585 | V37: =IFERROR(ROUND(S37/U37,2),"") -> 941.85 | W37: =K37/(1+$H$9) -> 258.1773725 | X37: =K37/(1+$P$29) -> 258.1773725
B38: 2 | C38: =IF(B38>$C$18,"",EDATE(C37,1)) -> 2022-11-16 | D38: 3 | E38: =IF(D38=7,C38+1,C38) -> 2022-11-16 | F38: =IF(B38>C$18,"",E38-E37) -> 30 | G38: =IFERROR(F38+G37,"") -> 88 | H38: =IF(B38>C$18,"",O37) -> 16083.42884 | I38: 465.351786 | J38: 447.4728041 | K38: =IF(B38>C$18,"",((1+C$13)^(F38/30)-1)*H38) -> 133.7176274 | L38: 0 | M38: 0 | N38: 1046.542217 | O38: 15618.07705 | P38: 0.9011094025 | Q38: 0.9011094025 | S38: 1046.542217 | T38: 88 | U38: 1.173422732 | V38: 891.87 | W38: =IF(N38="",0,K38/((1+$H$9)^B38)) -> 133.7176274 | X38: =IF(N38="",0,K38/((1+$P$29)^B38)) -> 133.7176274
B39: 3 | C39: 2022-12-16 | D39: 5 | E39: 2022-12-16 | F39: 30 | G39: 118 | H39: 15618.07705 | I39: 482.1677279 | J39: 434.5257969 | K39: 129.8486926 | L39: 0 | M39: 0 | N39: 1046.542217 | O39: 15135.90933 | P39: 0.8696825722 | Q39: 0.8696825722 | S39: 1046.542217 | T39: 118 | U39: 1.239173641 | V39: 844.55 | W39: 129.8486926 | X39: 129.8486926
B40: 4 | C40: 2023-01-16 | D40: 1 | E40: 2023-01-16 | F40: 31 | G40: 149 | H40: 15135.90933 | I40: 481.1416704 | J40: 435.3479616 | K40: 130.0525855 | L40: 0 | M40: 0 | N40: 1046.542217 | O40: 14654.76766 | P40: 0.8383591744 | Q40: 0.8383591744 | S40: 1046.542217 | T40: 149 | U40: 1.310989133 | V40: 798.28 | W40: 130.0525855 | X40: 130.0525855
B41: 5 | C41: 2023-02-16 | D41: 4 | E41: 2023-02-16 | F41: 31 | G41: 180 | H41: 14654.76766 | I41: 499.1146747 | J41: 421.5090807 | K41: 125.918462 | L41: 0 | M41: 0 | N41: 1046.542217 | O41: 14155.65298 | P41: 0.8081639529 | Q41: 0.8081639529 | S41: 1046.542217 | T41: 180 | U41: 1.386966646 | V41: 754.55 | W41: 125.918462 | X41: 125.918462
B42: 6 | C42: 2023-03-16 | D42: 4 | E42: 2023-03-16 | F42: 28 | G42: 208 | H42: 14155.65298 | I42: 569.4836661 | J42: 367.2448109 | K42: 109.8137404 | L42: 0 | M42: 0 | N42: 1046.542217 | O42: 13586.16931 | P42: 0.7818267128 | Q42: 0.7818267128 | S42: 1046.542217 | T42: 208 | U42: 1.459369197 | V42: 717.12 | W42: 109.8137404 | X42: 109.8137404
B43: 7 | C43: 2023-04-16 | D43: 7 | E43: 2023-04-17 | F43: 32 | G43: 240 | H43: 13586.16931 | I43: 522.4587012 | J43: 403.5644392 | K43: 120.5190771 | L43: 0 | M43: 0 | N43: 1046.542217 | O43: 13063.71061 | P43: 0.7527763515 | Q43: 0.7527763515 | S43: 1046.542217 | T43: 240 | U43: 1.546754386 | V43: 676.61 | W43: 120.5190771 | X43: 120.5190771
B44: 8 | C44: 2023-05-16 | D44: 2 | E44: 2023-05-16 | F44: 29 | G44: 269 | H44: 13063.71061 | I44: 590.3838077 | J44: 351.1816161 | K44: 104.9767936 | L44: 0 | M44: 0 | N44: 1046.542217 | O44: 12473.32681 | P44: 0.72738293 | Q44: 0.72738293 | S44: 1046.542217 | T44: 269 | U44: 1.630458578 | V44: 641.87 | W44: 104.9767936 | X44: 104.9767936
B45: 9 | C45: 2023-06-16 | D45: 5 | E45: 2023-06-16 | F45: 31 | G45: 300 | H45: 12473.32681 | I45: 580.6022037 | J45: 358.7651909 | K45: 107.1748229 | L45: 0 | M45: 0 | N45: 1046.542217 | O45: 11892.7246 | P45: 0.7011847451 | Q45: 0.7011847451 | S45: 1046.542217 | T45: 300 | U45: 1.724950731 | V45: 606.71 | W45: 107.1748229 | X45: 107.1748229
B46: 10 | C46: 2023-07-16 | D46: 7 | E46: 2023-07-17 | F46: 31 | G46: 331 | H46: 11892.7246 | I46: 602.2905473 | J46: 342.0655675 | K46: 102.1861026 | L46: 0 | M46: 0 | N46: 1046.542217 | O46: 11290.43405 | P46: 0.6759301414 | Q46: 0.6759301414 | S46: 1046.542217 | T46: 331 | U46: 1.824919115 | V46: 573.47 | W46: 102.1861026 | X46: 102.1861026
B47: 11 | C47: 2023-08-16 | D47: 3 | E47: 2023-08-16 | F47: 30 | G47: 361 | H47: 11290.43405 | I47: 638.5513403 | J47: 314.1222084 | K47: 93.86866873 | L47: 0 | M47: 0 | N47: 1046.542217 | O47: 10651.88271 | P47: 0.6523565977 | Q47: 0.6523565977 | S47: 1046.542217 | T47: 361 | U47: 1.927175606 | V47: 543.04 | W47: 93.86866873 | X47: 93.86866873
B48: 12 | C48: 2023-09-16 | D48: 6 | E48: 2023-09-16 | F48: 31 | G48: 392 | H48: 10651.88271 | I48: 648.6420857 | J48: 306.3757404 | K48: 91.5243913 | L48: 0 | M48: 0 | N48: 1046.542217 | O48: 10003.24063 | P48: 0.6288606397 | Q48: 0.6288606397 | S48: 1046.542217 | T48: 392 | U48: 2.038863799 | V48: 513.3 | W48: 91.5243913 | X48: 91.5243913
B49: 13 | C49: 2023-10-16 | D49: 1 | E49: 2023-10-16 | F49: 30 | G49: 422 | H49: =IF(B49>C$18,"",O48) -> 10003.24063 | I49: =IF(B49>C$18,"",N49-M49-L49-K49-J49) -> 685.0653337 | J49: 278.3099411 | K49: 83.16694259 | L49: 0 | M49: 0 | N49: 1046.542217 | O49: =IF(B49>C$18,"",H49-I49) -> 9318.175295 | P49: 0.6069286783 | Q49: 0.6069286783 | S49: =IFERROR(I49+J49+K49+L49+M49,"") -> 1046.542217 | T49: 422 | U49: 2.153108346 | V49: 486.06 | W49: 83.16694259 | X49: =IF(N49="",0,K49/((1+$P$29)^B49)) -> 83.16694259
B50: 14 | C50: 2023-11-16 | D50: 4 | E50: 2023-11-16 | F50: 31 | G50: 453 | H50: 9318.175295 | I50: 698.4626078 | J50: 268.0148601 | K50: 80.06474956 | L50: 0 | M50: 0 | N50: 1046.542217 | O50: 8619.712687 | P50: 0.5850688998 | Q50: 0.5850688998 | S50: 1046.542217 | T50: 453 | U50: 2.277890323 | V50: 459.43 | W50: 80.06474956 | X50: 80.06474956
B51: 15 | C51: 2023-12-16 | D51: 6 | E51: 2023-12-16 | F51: 30 | G51: 483 | H51: 8619.712687 | I51: 735.060469 | J51: 239.8174571 | K51: 71.66429128 | L51: 0 | M51: 0 | N51: 1046.542217 | O51: 7884.652218 | P51: 0.5646642064 | Q51: 0.5646642064 | S51: 1046.542217 | T51: 483 | U51: 2.405528347 | V51: 435.06 | W51: 71.66429128 | X51: 71.66429128
B52: 16 | C52: 2024-01-16 | D52: 2 | E52: 2024-01-16 | F52: 31 | G52: 514 | H52: 7884.652218 | I52: 752.0117349 | J52: 226.7830229 | K52: 67.74745969 | L52: 0 | M52: 0 | N52: 1046.542217 | O52: 7132.640483 | P52: 0.5443266694 | Q52: 0.5443266694 | S52: 1046.542217 | T52: 514 | U52: 2.544939159 | V52: 411.22 | W52: 67.74745969 | X52: 67.74745969
B53: 17 | C53: 2024-02-16 | D53: 5 | E53: 2024-02-16 | F53: 31 | G53: 545 | H53: 7132.640483 | I53: 780.1030664 | J53: 205.1532173 | K53: 61.28593377 | L53: 0 | M53: 0 | N53: 1046.542217 | O53: 6352.537417 | P53: 0.5247216303 | Q53: 0.5247216303 | S53: 1046.542217 | T53: 545 | U53: 2.692429432 | V53: 388.7 | W53: 61.28593377 | X53: 61.28593377
B54: 18 | C54: 2024-03-16 | D54: 6 | E54: 2024-03-16 | F54: 29 | G54: 574 | H54: 6352.537417 | I54: 824.7244314 | J54: 170.7703441 | K54: 51.04744194 | L54: 0 | M54: 0 | N54: 1046.542217 | O54: 5527.812985 | P54: 0.5070211838 | Q54: 0.5070211838 | S54: 1046.542217 | T54: 574 | U54: 2.838132999 | V54: 368.74 | W54: 51.04744194 | X54: 51.04744194
B55: 19 | C55: 2024-04-16 | D55: 2 | E55: 2024-04-16 | F55: 31 | G55: 605 | H55: 5527.812985 | I55: 840.0512549 | J55: 158.9942212 | K55: 47.4967414 | L55: 0 | M55: 0 | N55: 1046.542217 | O55: 4687.76173 | P55: 0.4887597782 | Q55: 0.4887597782 | S55: 1046.542217 | T55: 605 | U55: 3.002615129 | V55: 348.54 | W55: 47.4967414 | X55: 47.4967414
B56: 20 | C56: 2024-05-16 | D56: 4 | E56: 2024-05-16 | F56: 30 | G56: 635 | H56: 4687.76173 | I56: 877.1453625 | J56: 130.4228039 | K56: 38.97405103 | L56: 0 | M56: 0 | N56: 1046.542217 | O56: 3810.616368 | P56: 0.4717139339 | Q56: 0.4717139339 | S56: 1046.542217 | T56: 635 | U56: 3.170861975 | V56: 330.05 | W56: 38.97405103 | X56: 38.97405103
B57: 21 | C57: 2024-06-16 | D57: 7 | E57: 2024-06-17 | F57: 32 | G57: 667 | H57: 3810.616368 | I57: 899.5485227 | J57: 113.1907914 | K57: 33.80290331 | L57: 0 | M57: 0 | N57: 1046.542217 | O57: 2911.067845 | P57: 0.4541864435 | Q57: 0.4541864435 | S57: 1046.542217 | T57: 667 | U57: 3.360729195 | V57: 311.4 | W57: 33.80290331 | X57: 33.80290331
B58: 22 | C58: 2024-07-16 | D58: 2 | E58: 2024-07-16 | F58: 29 | G58: 696 | H58: 2911.067845 | I58: 944.8936033 | J58: 78.25598261 | K58: 23.39263149 | L58: 0 | M58: 0 | N58: 1046.542217 | O58: 1966.174242 | P58: 0.438865362 | Q58: 0.438865362 | S58: 1046.542217 | T58: 696 | U58: 3.542598486 | V58: 295.42 | W58: 23.39263149 | X58: 23.39263149
B59: 23 | C59: 2024-08-16 | D59: 5 | E59: 2024-08-16 | F59: 31 | G59: 727 | H59: 1966.174242 | I59: 973.0959535 | J59: 56.55226455 | K59: 16.89399945 | L59: 0 | M59: 0 | N59: 1046.542217 | O59: 993.0782885 | P59: 0.4230587278 | Q59: 0.4230587278 | S59: 1046.542217 | T59: 727 | U59: 3.747907448 | V59: 279.23 | W59: 16.89399945 | X59: 16.89399945
B60: 24 | C60: 2024-09-16 | D60: 1 | E60: 2024-09-16 | F60: 31 | G60: 758 | H60: 993.0782885 | I60: 993.0782885 | J60: 28.56350413 | K60: 8.532847038 | L60: 0 | M60: 0 | N60: 1030.17464 | O60: -1.136868377e-13 | P60: 0.4078214019 | Q60: 0.4078214019 | S60: 1030.17464 | T60: 758 | U60: 3.965114957 | V60: 259.81 | W60: 8.532847038 | X60: 8.532847038
B61: 25 | W61: 0 | X61: 0
B62: 26 | W62: 0 | X62: 0
B63: 27 | W63: 0 | X63: 0
B64: 28 | W64: 0 | X64: 0
B65: 29 | W65: 0 | X65: 0
B66: 30 | W66: 0 | X66: 0
B67: 31 | W67: 0 | X67: 0
B68: 32 | W68: 0 | X68: 0
B69: 33 | W69: 0 | X69: 0
B70: 34 | W70: 0 | X70: 0
B71: 35 | W71: 0 | X71: 0
B72: 36 | W72: 0 | X72: 0
B73: 37 | W73: 0 | X73: 0
B74: 38 | W74: 0 | X74: 0
B75: 39 | W75: 0 | X75: 0
B76: 40 | W76: 0 | X76: 0
B77: 41 | W77: 0 | X77: 0
B78: 42 | W78: 0 | X78: 0
B79: 43 | W79: 0 | X79: 0
B80: 44 | W80: 0 | X80: 0
B81: 45 | W81: 0 | X81: 0
B82: 46 | W82: 0 | X82: 0
B83: 47 | W83: 0 | X83: 0
B84: 48 | W84: 0 | X84: 0
B85: 49 | W85: 0 | X85: 0
B86: 50 | W86: 0 | X86: 0
B87: 51 | W87: 0 | X87: 0
B88: 52 | W88: 0 | X88: 0
B89: 53 | W89: 0 | X89: 0
B90: 54 | W90: 0 | X90: 0
B91: 55 | W91: 0 | X91: 0
B92: 56 | W92: 0 | X92: 0
B93: 57 | W93: 0 | X93: 0
B94: 58 | W94: 0 | X94: 0
B95: 59 | W95: 0 | X95: 0
B96: 60 | W96: 0 | X96: 0
B97: 61 | W97: 0 | X97: 0
B98: 62 | W98: 0 | X98: 0
B99: 63 | W99: 0 | X99: 0
B100: 64 | W100: 0 | X100: 0
B101: 65 | D101: =IF(B101<=$C$18,WEEKDAY(C101,2),"") ->  | I101: =IF(B101>C$18,"",N101-M101-L101-K101-J101) ->  | J101: =IF(B101>C$18,"",((1+C$24)^(F101/360)-1)*H101) ->  | L101: =IF(B101>C$18,"",C$26*C$27) ->  | M101: =IF(B101>C$18,"",C$28) ->  | N101: =IF(B101>C$18,"",IF(B101=C$18,H101+J101+K101+L101+M101,IF(AND(C$22=2,MONTH(E101)=7),2*C$29,IF(AND(C$23=2,MONTH(E101)=12),2*C$29,C$29)))) ->  | O101: =IF(B101>C$18,"",H101-I101) ->  | P101: =IFERROR(IF(AND(MONTH(E101)=7,C$22=2),2/(1+C$25)^(G101/360),IF(AND(MONTH(E101)=12,C$23=2),2/(1+C$25)^(G101/360),1/(1+C$25)^(G101/360))),"") ->  | Q101: =IFERROR(1/(1+C$25)^(G101/360),"") ->  | T101: =G101 ->  | U101: =IFERROR((1+C$31)^(T101/360),"") ->  | V101: =IFERROR(ROUND(S101/U101,2),"") ->  | W101: 0 | X101: 0
B102: 66 | C102: =IF(B102>$C$18,"",EDATE(C101,1)) ->  | E102: =IF(D102=7,C102+1,C102) ->  | F102: =IF(B102>C$18,"",E102-E101) ->  | G102: =IFERROR(F102+G101,"") ->  | H102: =IF(B102>C$18,"",O101) ->  | K102: =IF(B102>C$18,"",((1+C$13)^(F102/30)-1)*H102) ->  | S102: =IFERROR(I102+J102+K102+L102+M102,"") ->  | W102: =IF(N102="",0,K102/((1+$H$9)^B102)) -> 0 | X102: 0
B103: 67 | W103: 0 | X103: =IF(N103="",0,K103/((1+$P$29)^B103)) -> 0
B104: 68 | W104: 0 | X104: 0
B105: 69 | W105: 0 | X105: 0
B106: 70 | W106: 0 | X106: 0
B107: 71 | W107: 0 | X107: 0
B108: 72 | W108: 0 | X108: 0
B109: 73 | W109: 0 | X109: 0
B110: 74 | W110: 0 | X110: 0
B111: 75 | W111: 0 | X111: 0
B112: 76 | W112: 0 | X112: 0
B113: 77 | W113: 0 | X113: 0
B114: 78 | W114: 0 | X114: 0
B115: 79 | W115: 0 | X115: 0
B116: 80 | W116: 0 | X116: 0
B117: 81 | W117: 0 | X117: 0
B118: 82 | W118: 0 | X118: 0
B119: 83 | W119: 0 | X119: 0
B120: 84 | W120: 0 | X120: 0
B121: 85 | W121: 0 | X121: 0
B122: 86 | W122: 0 | X122: 0
B123: 87 | W123: 0 | X123: 0
B124: 88 | W124: 0 | X124: 0
B125: 89 | W125: 0 | X125: 0
B126: 90 | W126: 0 | X126: 0
B127: 91 | W127: 0 | X127: 0
B128: 92 | W128: 0 | X128: 0
B129: 93 | W129: 0 | X129: 0
B130: 94 | W130: 0 | X130: 0
B131: 95 | W131: 0 | X131: 0
B132: 96 | W132: 0 | X132: 0
B133: 97 | W133: 0 | X133: 0
B134: 98 | W134: 0 | X134: 0
B135: 99 | W135: 0 | X135: 0
B136: 100 | W136: 0 | X136: 0
B137: 101 | W137: 0 | X137: 0
B138: 102 | W138: 0 | X138: 0
B139: 103 | W139: 0 | X139: 0
B140: 104 | W140: 0 | X140: 0
B141: 105 | W141: 0 | X141: 0
B142: 106 | W142: 0 | X142: 0
B143: 107 | W143: 0 | X143: 0
B144: 108 | W144: 0 | X144: 0
B145: 109 | W145: 0 | X145: 0
B146: 110 | W146: 0 | X146: 0
B147: 111 | W147: 0 | X147: 0
B148: 112 | W148: 0 | X148: 0
B149: 113 | W149: 0 | X149: 0
B150: 114 | W150: 0 | X150: 0
B151: 115 | W151: 0 | X151: 0
B152: 116 | W152: 0 | X152: 0
B153: 117 | W153: 0 | X153: 0
B154: 118 | W154: 0 | X154: 0
B155: 119 | W155: 0 | X155: 0
B156: 120 | W156: 0 | X156: 0
B157: 121 | W157: 0 | X157: 0
B158: 122 | W158: 0 | X158: 0
B159: 123 | W159: 0 | X159: 0
B160: 124 | W160: 0 | X160: 0
B161: 125 | W161: 0 | X161: 0
B162: 126 | W162: 0 | X162: 0
B163: 127 | W163: 0 | X163: 0
B164: 128 | W164: 0 | X164: 0
B165: 129 | D165: =IF(B165<=$C$18,WEEKDAY(C165,2),"") ->  | I165: =IF(B165>C$18,"",N165-M165-L165-K165-J165) ->  | J165: =IF(B165>C$18,"",((1+C$24)^(F165/360)-1)*H165) ->  | L165: =IF(B165>C$18,"",C$26*C$27) ->  | M165: =IF(B165>C$18,"",C$28) ->  | N165: =IF(B165>C$18,"",IF(B165=C$18,H165+J165+K165+L165+M165,IF(AND(C$22=2,MONTH(E165)=7),2*C$29,IF(AND(C$23=2,MONTH(E165)=12),2*C$29,C$29)))) ->  | O165: =IF(B165>C$18,"",H165-I165) ->  | P165: =IFERROR(IF(AND(MONTH(E165)=7,C$22=2),2/(1+C$25)^(G165/360),IF(AND(MONTH(E165)=12,C$23=2),2/(1+C$25)^(G165/360),1/(1+C$25)^(G165/360))),"") ->  | Q165: =IFERROR(1/(1+C$25)^(G165/360),"") ->  | T165: =G165 ->  | U165: =IFERROR((1+C$31)^(T165/360),"") ->  | V165: =IFERROR(ROUND(S165/U165,2),"") ->  | W165: 0 | X165: 0
B166: 130 | C166: =IF(B166>$C$18,"",EDATE(C165,1)) ->  | E166: =IF(D166=7,C166+1,C166) ->  | F166: =IF(B166>C$18,"",E166-E165) ->  | G166: =IFERROR(F166+G165,"") ->  | H166: =IF(B166>C$18,"",O165) ->  | K166: =IF(B166>C$18,"",((1+C$13)^(F166/30)-1)*H166) ->  | S166: =IFERROR(I166+J166+K166+L166+M166,"") ->  | W166: =IF(N166="",0,K166/((1+$H$9)^B166)) -> 0 | X166: 0
B167: 131 | W167: 0 | X167: =IF(N167="",0,K167/((1+$P$29)^B167)) -> 0
B168: 132 | W168: 0 | X168: 0
B169: 133 | W169: 0 | X169: 0
B170: 134 | W170: 0 | X170: 0
B171: 135 | W171: 0 | X171: 0
B172: 136 | W172: 0 | X172: 0
B173: 137 | W173: 0 | X173: 0
B174: 138 | W174: 0 | X174: 0
B175: 139 | W175: 0 | X175: 0
B176: 140 | W176: 0 | X176: 0
B177: 141 | W177: 0 | X177: 0
B178: 142 | W178: 0 | X178: 0
B179: 143 | W179: 0 | X179: 0
B180: 144 | W180: 0 | X180: 0
B181: 145 | W181: 0 | X181: 0
B182: 146 | W182: 0 | X182: 0
B183: 147 | W183: 0 | X183: 0
B184: 148 | W184: 0 | X184: 0
B185: 149 | W185: 0 | X185: 0
B186: 150 | W186: 0 | X186: 0
B187: 151 | W187: 0 | X187: 0
B188: 152 | W188: 0 | X188: 0
B189: 153 | W189: 0 | X189: 0
B190: 154 | W190: 0 | X190: 0
B191: 155 | W191: 0 | X191: 0
B192: 156 | W192: 0 | X192: 0
B193: 157 | W193: 0 | X193: 0
B194: 158 | W194: 0 | X194: 0
B195: 159 | W195: 0 | X195: 0
B196: 160 | W196: 0 | X196: 0
B197: 161 | W197: 0 | X197: 0
B198: 162 | W198: 0 | X198: 0
B199: 163 | W199: 0 | X199: 0
B200: 164 | W200: 0 | X200: 0
B201: 165 | W201: 0 | X201: 0
B202: 166 | W202: 0 | X202: 0
B203: 167 | W203: 0 | X203: 0
B204: 168 | W204: 0 | X204: 0
B205: 169 | W205: 0 | X205: 0
B206: 170 | W206: 0 | X206: 0
B207: 171 | W207: 0 | X207: 0
B208: 172 | W208: 0 | X208: 0
... 188 more rows

Sheet TarifarioBD (hidden)
A1: TARIFA | B1: PRODUCTO | C1: TIPO_SEGURO | D1: Plazo | E1: Valor | G1: TARIFA | H1: PRODUCTO | I1: TIPO_SEGURO
A2: TARIFA TITULAR | B2: Préstamos Personales (LD ) | C2: Seguro de Vida | D2: 0-12 | E2: 0.054 | G2: TARIFA TITULAR | H2: Préstamos Personales (LD ) | I2: Seguro de Vida
A3: TARIFA TITULAR | B3: Préstamos Personales (LD ) | C3: Seguro de Vida | D3: 13-18 | E3: 0.059 | I3: Seguro de Desgravamen
A4: TARIFA TITULAR | B4: Préstamos Personales (LD ) | C4: Seguro de Vida | D4: 19-24 | E4: 0.064 | I4: Seguro de Desgravamen con Devolución
A5: TARIFA TITULAR | B5: Préstamos Personales (LD ) | C5: Seguro de Vida | D5: 25-36 | E5: 0.068
A6: TARIFA TITULAR | B6: Préstamos Personales (LD ) | C6: Seguro de Vida | D6: 37-48 | E6: 0.074
A7: TARIFA TITULAR | B7: Préstamos Personales (LD ) | C7: Seguro de Vida | D7: 49-84 | E7: 0.081
A8: TARIFA TITULAR | B8: Préstamos Personales (LD ) | C8: Seguro de Desgravamen | D8: 0-12 | E8: 0.008314
A9: TARIFA TITULAR | B9: Préstamos Personales (LD ) | C9: Seguro de Desgravamen | D9: 13-18 | E9: 0.008314
A10: TARIFA TITULAR | B10: Préstamos Personales (LD ) | C10: Seguro de Desgravamen | D10: 19-24 | E10: 0.008314
A11: TARIFA TITULAR | B11: Préstamos Personales (LD ) | C11: Seguro de Desgravamen | D11: 25-36 | E11: 0.008314
A12: TARIFA TITULAR | B12: Préstamos Personales (LD ) | C12: Seguro de Desgravamen | D12: 37-48 | E12: 0.008314
A13: TARIFA TITULAR | B13: Préstamos Personales (LD ) | C13: Seguro de Desgravamen | D13: 49-84 | E13: 0.008314
A14: TARIFA TITULAR | B14: Préstamos Personales (LD ) | C14: Seguro de Desgravamen con Devolución | D14: 0-12 | E14: 0.010844
A15: TARIFA TITULAR | B15: Préstamos Personales (LD ) | C15: Seguro de Desgravamen con Devolución | D15: 13-18 | E15: 0.010844
A16: TARIFA TITULAR | B16: Préstamos Personales (LD ) | C16: Seguro de Desgravamen con Devolución | D16: 19-24 | E16: 0.010844
A17: TARIFA TITULAR | B17: Préstamos Personales (LD ) | C17: Seguro de Desgravamen con Devolución | D17: 25-36 | E17: 0.010844
A18: TARIFA TITULAR | B18: Préstamos Personales (LD ) | C18: Seguro de Desgravamen con Devolución | D18: 37-48 | E18: 0.010844
A19: TARIFA TITULAR | B19: Préstamos Personales (LD ) | C19: Seguro de Desgravamen con Devolución | D19: 49-84 | E19: 0.010844

Sheet CostoCapBD (hidden)
A1: TARIFA | B1: CostoCapital
A2: TARIFA TITULAR | B2: 0.002871
